[Event "Chpt France Universitaire 2024"]
[Site "Bastia, France"]
[Date "2024.04.06"]
[Round "1.1"]
[White "Rakotomaharo, Fy Antenaina"]
[Black "Gadimov, Emil"]
[Result "1-0"]
[TimeControl "15min+5s"]
[WhiteElo "2448"]
[BlackElo "1701"]

1. e4 {[%clk 00:15:05]} {[%emt 00:00:02]} e5 {[%clk 00:15:05]} {[%emt
00:00:03]} 2. Nf3 {[%clk 00:15:05]} {[%emt 00:00:02]} Nc6 {[%clk 00:15:05]}
{[%emt 00:00:02]} 3. Bb5 {[%clk 00:15:05]} {[%emt 00:00:03]} Bc5 {[%clk
00:14:58]} {[%emt 00:00:13]} 4. c3 {[%clk 00:15:04]} {[%emt 00:00:06]} Nf6
{[%clk 00:14:58]} {[%emt 00:00:03]} 5. O-O {[%clk 00:14:55]} {[%emt 00:00:13]}
O-O {[%clk 00:14:57]} {[%emt 00:00:06]} 6. d4 {[%clk 00:14:55]} {[%emt
00:00:02]} exd4 {[%clk 00:14:57]} {[%emt 00:00:05]} 7. cxd4 {[%clk 00:14:55]}
{[%emt 00:00:04]} Bb6 {[%clk 00:14:41]} {[%emt 00:00:21]} 8. e5 {[%clk
00:14:39]} {[%emt 00:00:22]} Ne4 {[%clk 00:14:02]} {[%emt 00:00:44]} 9. d5
{[%clk 00:14:23]} {[%emt 00:00:20]} Ne7 {[%clk 00:13:46]} {[%emt 00:00:22]} 10.
Bd3 {[%clk 00:14:23]} {[%emt 00:00:03]} Nc5 {[%clk 00:13:46]} {[%emt 00:00:02]}
11. Bxh7+ {[%clk 00:14:05]} {[%emt 00:00:23]} Kh8 {[%clk 00:10:29]} {[%emt
00:03:22]} 12. Ng5 {[%clk 00:13:58]} {[%emt 00:00:11]} g6 {[%clk 00:08:48]}
{[%emt 00:01:47]} 13. Qf3 {[%clk 00:13:58]} {[%emt 00:00:03]} Nf5 {[%clk
00:08:24]} {[%emt 00:00:30]} 14. Qh3 {[%clk 00:13:58]} {[%emt 00:00:02]} Kg7
{[%clk 00:07:20]} {[%emt 00:01:09]} 15. Bxg6 {[%clk 00:13:57]} {[%emt
00:00:06]} Rh8 {[%clk 00:07:20]} {[%emt 00:00:03]} 16. Qxf5 {[%clk 00:13:57]}
{[%emt 00:00:02]} fxg6 {[%clk 00:07:18]} {[%emt 00:00:08]} 17. Qf7+ {[%clk
00:13:57]} {[%emt 00:00:02]} Kh6 {[%clk 00:07:17]} {[%emt 00:00:06]} 18. Ne6+
{[%clk 00:13:50]} {[%emt 00:00:12]} Kh5 {[%clk 00:07:11]} {[%emt 00:00:10]} 19.
Qf3+ {[%clk 00:13:50]} {[%emt 00:00:04]} Kh4 {[%clk 00:07:11]} {[%emt
00:00:06]} 20. g3+ {[%clk 00:13:45]} {[%emt 00:00:10]} Kh3 {[%clk 00:07:08]}
{[%emt 00:00:08]} 21. Nf4# {[%clk 00:13:45]} {[%emt 00:00:01]} 1-0

[Event "Chpt France Universitaire 2024"]
[Site "Bastia, France"]
[Date "2024.04.06"]
[Round "1.2"]
[White "Bruguier, Florian"]
[Black "Gatineau, Yovann"]
[Result "0-1"]
[TimeControl "15min+5s"]
[WhiteElo "1739"]
[BlackElo "2408"]

1. f4 {[%clk 00:15:05]} {[%emt 00:00:01]} d5 {[%clk 00:15:05]} {[%emt
00:00:03]} 2. Nf3 {[%clk 00:15:05]} {[%emt 00:00:01]} g6 {[%clk 00:15:05]}
{[%emt 00:00:02]} 3. e3 {[%clk 00:14:56]} {[%emt 00:00:14]} Bg7 {[%clk
00:15:05]} {[%emt 00:00:02]} 4. d4 {[%clk 00:14:26]} {[%emt 00:00:36]} Nf6
{[%clk 00:15:05]} {[%emt 00:00:04]} 5. Bd3 {[%clk 00:14:19]} {[%emt 00:00:12]}
O-O {[%clk 00:14:59]} {[%emt 00:00:11]} 6. Nc3 {[%clk 00:14:12]} {[%emt
00:00:12]} c5 {[%clk 00:14:58]} {[%emt 00:00:06]} 7. dxc5 {[%clk 00:13:34]}
{[%emt 00:00:43]} Nc6 {[%clk 00:14:58]} {[%emt 00:00:04]} 8. O-O {[%clk
00:13:13]} {[%emt 00:00:27]} Qa5 {[%clk 00:13:18]} {[%emt 00:01:45]} 9. Qe1
{[%clk 00:11:59]} {[%emt 00:01:19]} Qxc5 {[%clk 00:13:16]} {[%emt 00:00:07]} 10.
Kh1 {[%clk 00:11:29]} {[%emt 00:00:35]} Nb4 {[%clk 00:11:59]} {[%emt 00:01:22]}
11. a3 {[%clk 00:11:08]} {[%emt 00:00:27]} Nxd3 {[%clk 00:11:59]} {[%emt
00:00:04]} 12. cxd3 {[%clk 00:11:08]} {[%emt 00:00:01]} b6 {[%clk 00:11:25]}
{[%emt 00:00:39]} 13. Bd2 {[%clk 00:11:01]} {[%emt 00:00:12]} Ba6 {[%clk
00:11:23]} {[%emt 00:00:06]} 14. b4 {[%clk 00:10:37]} {[%emt 00:00:30]} Qd6
{[%clk 00:11:08]} {[%emt 00:00:19]} 15. b5 {[%clk 00:10:18]} {[%emt 00:00:25]}
Bb7 {[%clk 00:11:08]} 16. Ne2 {[%clk 00:09:20]} {[%emt 00:01:03]} a5 {[%clk
00:10:21]} {[%emt 00:00:52]} 17. a4 {[%clk 00:09:08]} {[%emt 00:00:17]} Rac8
{[%clk 00:10:21]} {[%emt 00:00:03]} 18. Rc1 {[%clk 00:08:52]} {[%emt 00:00:21]}
Nd7 {[%clk 00:10:19]} {[%emt 00:00:07]} 19. d4 {[%clk 00:08:20]} {[%emt
00:00:37]} Rc4 {[%clk 00:09:07]} {[%emt 00:01:17]} 20. Rxc4 {[%clk 00:07:36]}
{[%emt 00:00:50]} dxc4 {[%clk 00:09:07]} {[%emt 00:00:01]} 21. Bc3 {[%clk
00:07:24]} {[%emt 00:00:17]} Nf6 {[%clk 00:08:56]} {[%emt 00:00:15]} 22. Nd2
{[%clk 00:06:55]} {[%emt 00:00:34]} Qd5 {[%clk 00:08:11]} {[%emt 00:00:50]} 23.
Rg1 {[%clk 00:06:25]} {[%emt 00:00:35]} Ne4 {[%clk 00:06:19]} {[%emt 00:01:56]}
24. Nxe4 {[%clk 00:05:41]} {[%emt 00:00:50]} Qxe4 {[%clk 00:06:19]} {[%emt
00:00:01]} 25. Ng3 {[%clk 00:05:41]} Qc2 {[%clk 00:06:16]} {[%emt 00:00:08]} 26.
Qa1 {[%clk 00:05:02]} {[%emt 00:00:45]} h5 {[%clk 00:05:48]} {[%emt 00:00:33]}
27. Nf1 {[%clk 00:04:41]} {[%emt 00:00:26]} Qf5 {[%clk 00:04:33]} {[%emt
00:01:19]} 28. Qe1 {[%clk 00:03:24]} {[%emt 00:01:22]} Qc2 {[%clk 00:04:16]}
{[%emt 00:00:22]} 29. Qa1 {[%clk 00:03:22]} {[%emt 00:00:07]} Rc8 {[%clk
00:03:56]} {[%emt 00:00:25]} 30. Nd2 {[%clk 00:03:03]} {[%emt 00:00:25]} Qf5
{[%clk 00:03:25]} {[%emt 00:00:35]} 31. Qb1 {[%clk 00:01:53]} {[%emt 00:01:15]}
Qg4 {[%clk 00:03:04]} {[%emt 00:00:26]} 32. Qd1 {[%clk 00:01:53]} {[%emt
00:00:02]} Qe6 {[%clk 00:03:03]} {[%emt 00:00:06]} 33. Re1 {[%clk 00:01:38]}
{[%emt 00:00:19]} Rd8 {[%clk 00:02:46]} {[%emt 00:00:22]} 34. Qe2 {[%clk
00:01:31]} {[%emt 00:00:12]} h4 {[%clk 00:02:43]} {[%emt 00:00:08]} 35. Kg1
{[%clk 00:01:19]} {[%emt 00:00:17]} h3 {[%clk 00:02:43]} {[%emt 00:00:01]} 36.
gxh3 {[%clk 00:00:53]} {[%emt 00:00:31]} Qd5 {[%clk 00:02:43]} {[%emt
00:00:01]} 37. e4 {[%clk 00:00:48]} {[%emt 00:00:10]} Bxd4+ {[%clk 00:02:42]}
{[%emt 00:00:06]} 38. Kf1 {[%clk 00:00:31]} {[%emt 00:00:22]} Qd7 {[%clk
00:02:21]} {[%emt 00:00:25]} 39. Bxd4 {[%clk 00:00:27]} {[%emt 00:00:09]} Qxh3+
{[%clk 00:02:21]} {[%emt 00:00:02]} 40. Kg1 {[%clk 00:00:26]} {[%emt 00:00:06]}
Rxd4 {[%clk 00:02:21]} {[%emt 00:00:02]} 41. Nxc4 {[%clk 00:00:16]} {[%emt
00:00:15]} Rxe4 {[%clk 00:02:21]} {[%emt 00:00:02]} 42. Qxe4 {[%clk 00:00:16]}
{[%emt 00:00:03]} Bxe4 {[%clk 00:02:03]} {[%emt 00:00:23]} 43. Rxe4 {[%clk
00:00:16]} {[%emt 00:00:01]} Qd3 {[%clk 00:02:03]} {[%emt 00:00:01]} 44. Nxb6
{[%clk 00:00:09]} {[%emt 00:00:13]} Qxe4 {[%clk 00:02:03]} {[%emt 00:00:03]} 45.
Nd7 {[%clk 00:00:08]} {[%emt 00:00:07]} Qe1+ {[%clk 00:02:03]} {[%emt
00:00:03]} 46. Kg2 {[%clk 00:00:08]} {[%emt 00:00:01]} Qd2+ {[%clk 00:02:03]}
{[%emt 00:00:01]} 47. Kf3 {[%clk 00:00:08]} {[%emt 00:00:03]} Qxd7 {[%clk
00:02:03]} {[%emt 00:00:02]} 48. Ke4 {[%clk 00:00:08]} {[%emt 00:00:01]} Qd1
{[%clk 00:02:03]} {[%emt 00:00:02]} 49. Ke3 {[%clk 00:00:08]} {[%emt 00:00:03]}
Qxa4 {[%clk 00:02:03]} {[%emt 00:00:02]} 0-1

[Event "Chpt France Universitaire 2024"]
[Site "Bastia, France"]
[Date "2024.04.06"]
[Round "1.3"]
[White "Mathieu, Phileas"]
[Black "Barriere, Matteo"]
[Result "1-0"]
[TimeControl "15min+5s"]
[WhiteElo "2325"]
[BlackElo "1199"]

1. e4 {[%clk 00:15:03]} {[%emt 00:00:06]} e6 {[%clk 00:15:05]} {[%emt
00:00:03]} 2. d4 {[%clk 00:14:48]} {[%emt 00:00:20]} d5 {[%clk 00:15:05]}
{[%emt 00:00:02]} 3. Nc3 {[%clk 00:14:48]} {[%emt 00:00:02]} Nf6 {[%clk
00:15:05]} {[%emt 00:00:02]} 4. e5 {[%clk 00:14:47]} {[%emt 00:00:06]} Nfd7
{[%clk 00:15:05]} {[%emt 00:00:02]} 5. Nce2 {[%clk 00:14:47]} {[%emt 00:00:02]}
c5 {[%clk 00:15:05]} {[%emt 00:00:02]} 6. c3 {[%clk 00:14:47]} {[%emt
00:00:01]} Nc6 {[%clk 00:15:05]} {[%emt 00:00:02]} 7. Nf3 {[%clk 00:14:47]}
{[%emt 00:00:02]} Be7 {[%clk 00:15:04]} {[%emt 00:00:07]} 8. a3 {[%clk
00:14:26]} {[%emt 00:00:26]} b6 {[%clk 00:14:41]} {[%emt 00:00:27]} 9. Nf4
{[%clk 00:14:25]} {[%emt 00:00:05]} a5 {[%clk 00:14:35]} {[%emt 00:00:12]} 10.
Bb5 {[%clk 00:13:50]} {[%emt 00:00:40]} Qc7 {[%clk 00:14:27]} {[%emt 00:00:13]}
11. Qa4 {[%clk 00:13:50]} {[%emt 00:00:02]} Na7 {[%clk 00:13:20]} {[%emt
00:01:12]} 12. Bd3 {[%clk 00:13:50]} {[%emt 00:00:02]} Nc6 {[%clk 00:12:59]}
{[%emt 00:00:26]} 13. Be3 {[%clk 00:13:28]} {[%emt 00:00:28]} Ba6 {[%clk
00:12:53]} {[%emt 00:00:10]} 14. Bxa6 {[%clk 00:13:28]} {[%emt 00:00:02]} Rxa6
{[%clk 00:12:53]} {[%emt 00:00:04]} 15. h4 {[%clk 00:13:10]} {[%emt 00:00:22]}
Na7 {[%clk 00:12:09]} {[%emt 00:00:49]} 16. Rh3 {[%clk 00:13:00]} {[%emt
00:00:15]} cxd4 {[%emt 00:01:05]} 17. cxd4 Qc6 18. Qd1 b5 19. h5 h6 20. Rg3 Rg8
21. Rc1 Qb7 22. Nd3 b4 23. a4 Nb8 24. Bxh6 Bf8 25. Be3 Rh8 26. Rh3 Nbc6 27. b3
Qb6 28. Qc2 Ne7 29. Nc5 Nf5 30. Nxa6 Qxa6 31. g4 Nh6 32. Bxh6 gxh6 33. Qe2 Qb7
34. Qc2 Kd7 35. g5 hxg5 36. Nxg5 Bh6 37. Rf3 Qa6 38. Rxf7+ Ke8 39. Rxa7 Qxa7 40.
Qc8+ Ke7 {[%clk 00:11:10]} 41. Qxe6+ {[%clk 00:13:00]} 1-0

[Event "Chpt France Universitaire 2024"]
[Site "Bastia, France"]
[Date "2024.04.06"]
[Round "1.4"]
[White "Lerdu, Gaspard"]
[Black "Defromont, Benjamin"]
[Result "0-1"]
[TimeControl "15min+5s"]
[WhiteElo "1706"]
[BlackElo "2393"]

1. d4 {[%clk 00:15:05]} {[%emt 19:49:49]} Nf6 {[%clk 00:15:03]} {[%emt
00:00:13]} 2. c4 {[%clk 00:15:05]} {[%emt 00:00:01]} c5 {[%clk 00:15:03]}
{[%emt 00:00:04]} 3. d5 {[%clk 00:15:05]} {[%emt 00:00:03]} e6 {[%clk
00:15:03]} {[%emt 00:00:01]} 4. Nc3 {[%clk 00:15:05]} {[%emt 00:00:02]} exd5
{[%clk 00:14:59]} {[%emt 00:00:09]} 5. cxd5 {[%clk 00:14:44]} {[%emt 00:00:26]}
d6 {[%clk 00:14:59]} {[%emt 00:00:01]} 6. Bg5 {[%clk 00:14:03]} {[%emt
00:00:47]} h6 {[%clk 00:14:05]} {[%emt 00:00:59]} 7. Bxf6 {[%clk 00:13:12]}
{[%emt 00:00:55]} Qxf6 {[%clk 00:14:04]} {[%emt 00:00:06]} 8. Nf3 {[%clk
00:12:51]} {[%emt 00:00:26]} a6 {[%clk 00:13:02]} {[%emt 00:01:07]} 9. a4
{[%clk 00:12:22]} {[%emt 00:00:34]} g5 {[%clk 00:12:54]} {[%emt 00:00:12]} 10.
e4 {[%clk 00:10:49]} {[%emt 00:01:38]} Bg7 {[%clk 00:11:52]} {[%emt 00:01:07]}
11. Qb3 {[%clk 00:07:04]} {[%emt 00:03:51]} O-O {[%clk 00:11:15]} {[%emt
00:00:42]} 12. h3 {[%clk 00:05:56]} {[%emt 00:01:12]} Nd7 {[%clk 00:10:55]}
{[%emt 00:00:25]} 13. Bd3 {[%clk 00:05:20]} {[%emt 00:00:41]} Rb8 {[%clk
00:08:34]} {[%emt 00:02:26]} 14. O-O-O {[%clk 00:05:11]} {[%emt 00:00:15]} b5
{[%clk 00:08:18]} {[%emt 00:00:21]} 15. axb5 {[%clk 00:04:52]} {[%emt
00:00:24]} axb5 {[%clk 00:08:18]} {[%emt 00:00:01]} 16. Bb1 {[%clk 00:04:49]}
{[%emt 00:00:08]} b4 {[%clk 00:08:14]} {[%emt 00:00:09]} 17. Ne2 {[%clk
00:03:38]} {[%emt 00:01:15]} Ba6 {[%clk 00:08:03]} {[%emt 00:00:17]} 18. Rhe1
{[%clk 00:02:35]} {[%emt 00:01:07]} c4 {[%clk 00:08:02]} {[%emt 00:00:06]} 19.
Qc2 {[%clk 00:02:19]} {[%emt 00:00:21]} Nc5 {[%clk 00:07:47]} {[%emt 00:00:20]}
20. Ned4 {[%clk 00:01:36]} {[%emt 00:00:48]} Rfc8 {[%clk 00:07:34]} {[%emt
00:00:18]} 21. e5 {[%clk 00:01:22]} {[%emt 00:00:19]} dxe5 {[%clk 00:07:27]}
{[%emt 00:00:11]} 22. Rxe5 {[%clk 00:00:37]} {[%emt 00:00:50]} Nb3+ {[%clk
00:07:21]} {[%emt 00:00:11]} 23. Nxb3 {[%clk 00:00:37]} {[%emt 00:00:05]} cxb3
{[%clk 00:07:21]} {[%emt 00:00:04]} 24. Qxc8+ {[%clk 00:00:31]} {[%emt
00:00:11]} Rxc8+ {[%clk 00:07:21]} {[%emt 00:00:01]} 25. Kd2 {[%clk 00:00:31]}
{[%emt 00:00:05]} Qf4+ {[%clk 00:07:21]} {[%emt 00:00:03]} 26. Ke1 {[%clk
00:00:31]} {[%emt 00:00:03]} Bxe5 {[%clk 00:07:21]} {[%emt 00:00:03]} 27. Nxe5
{[%clk 00:00:31]} {[%emt 00:00:04]} Qxe5+ {[%clk 00:07:21]} {[%emt 00:00:03]}
28. Kd2 {[%emt 00:00:07]} Qe2# {[%clk 00:07:21]} {[%emt 00:00:01]} 0-1

[Event "Chpt France Universitaire 2024"]
[Site "Bastia, France"]
[Date "2024.04.06"]
[Round "1.5"]
[White "Harutyunyan, Safar"]
[Black "Huguet, Alexandre"]
[Result "1-0"]
[TimeControl "15min+5s"]
[WhiteElo "2266"]
[BlackElo "1775"]

1. e4 {[%clk 00:15:05]} {[%emt 00:00:02]} g6 {[%clk 00:15:05]} {[%emt
00:00:02]} 2. d4 {[%clk 00:15:05]} {[%emt 00:00:02]} Bg7 {[%clk 00:15:05]}
{[%emt 00:00:03]} 3. Nc3 {[%clk 00:15:05]} {[%emt 00:00:02]} c6 {[%clk
00:15:05]} {[%emt 00:00:03]} 4. Nf3 {[%clk 00:15:05]} {[%emt 00:00:02]} d5
{[%clk 00:15:05]} {[%emt 00:00:05]} 5. h3 {[%clk 00:15:05]} {[%emt 00:00:01]}
dxe4 {[%clk 00:14:26]} {[%emt 00:00:45]} 6. Nxe4 {[%clk 00:15:05]} {[%emt
00:00:02]} Nd7 {[%clk 00:14:26]} {[%emt 00:00:03]} 7. Bc4 {[%clk 00:14:48]}
{[%emt 00:00:22]} Ngf6 {[%clk 00:13:36]} {[%emt 00:00:55]} 8. Nxf6+ {[%clk
00:14:32]} {[%emt 00:00:21]} Nxf6 {[%clk 00:13:36]} {[%emt 00:00:03]} 9. O-O
{[%clk 00:14:31]} {[%emt 00:00:05]} O-O {[%clk 00:13:21]} {[%emt 00:00:21]} 10.
Re1 {[%clk 00:14:31]} {[%emt 00:00:03]} b5 {[%clk 00:11:41]} {[%emt 00:01:45]}
11. Bf1 {[%clk 00:13:26]} {[%emt 00:01:10]} e6 {[%clk 00:11:39]} {[%emt
00:00:08]} 12. Ne5 {[%clk 00:13:10]} {[%emt 00:00:20]} Bb7 {[%clk 00:11:18]}
{[%emt 00:00:27]} 13. c3 {[%clk 00:13:00]} {[%emt 00:00:15]} Nd7 {[%clk
00:10:34]} {[%emt 00:00:48]} 14. Nd3 {[%clk 00:13:00]} {[%emt 00:00:04]} Re8
{[%clk 00:09:56]} {[%emt 00:00:44]} 15. Bf4 {[%clk 00:12:56]} {[%emt 00:00:08]}
Qb6 {[%clk 00:09:44]} {[%emt 00:00:18]} 16. a4 {[%clk 00:12:16]} {[%emt
00:00:45]} a5 {[%clk 00:09:07]} {[%emt 00:00:42]} 17. Qd2 {[%clk 00:11:46]}
{[%emt 00:00:35]} Bf8 {[%clk 00:07:47]} {[%emt 00:01:25]} 18. h4 {[%clk
00:10:35]} {[%emt 00:01:15]} h5 {[%clk 00:06:38]} {[%emt 00:01:14]} 19. Ne5
{[%clk 00:09:24]} {[%emt 00:01:16]} Nxe5 {[%clk 00:06:15]} {[%emt 00:00:29]} 20.
Bxe5 {[%emt 00:00:03]} Be7 21. Qh6 {[%clk 00:09:24]} 1-0

[Event "Chpt France Universitaire 2024"]
[Site "Bastia, France"]
[Date "2024.04.06"]
[Round "1.6"]
[White "Akriche-Giubert, Thomas"]
[Black "Dalaud, Dorian"]
[Result "0-1"]
[TimeControl "15min+5s"]
[WhiteElo "1776"]
[BlackElo "2307"]

1. d4 {[%clk 00:15:05]} Nf6 {[%clk 00:15:05]} {[%emt 00:00:06]} 2. Bg5 {[%clk
00:15:05]} {[%emt 00:00:02]} c5 {[%clk 00:15:05]} {[%emt 00:00:03]} 3. Bxf6
{[%clk 00:15:05]} {[%emt 00:00:02]} gxf6 {[%clk 00:15:01]} {[%emt 00:00:08]} 4.
d5 {[%clk 00:15:05]} {[%emt 00:00:02]} f5 {[%clk 00:14:09]} {[%emt 00:00:56]} 5.
Nf3 {[%clk 00:14:40]} {[%emt 00:00:30]} Bg7 {[%clk 00:13:52]} {[%emt 00:00:22]}
6. c3 {[%clk 00:14:40]} {[%emt 00:00:02]} d6 {[%clk 00:13:52]} {[%emt
00:00:01]} 7. a4 {[%clk 00:14:31]} {[%emt 00:00:15]} Nd7 {[%clk 00:13:41]}
{[%emt 00:00:15]} 8. e3 {[%clk 00:14:15]} {[%emt 00:00:21]} Nf6 {[%clk
00:13:18]} {[%emt 00:00:27]} 9. Bb5+ {[%clk 00:12:39]} {[%emt 00:01:42]} Kf8
{[%clk 00:11:40]} {[%emt 00:01:43]} 10. O-O {[%clk 00:10:58]} {[%emt 00:01:46]}
Rg8 {[%clk 00:11:39]} {[%emt 00:00:07]} 11. Re1 {[%clk 00:09:59]} {[%emt
00:01:04]} a6 {[%clk 00:09:14]} {[%emt 00:02:30]} 12. Bc4 {[%clk 00:09:59]}
{[%emt 00:00:02]} b6 {[%clk 00:08:44]} {[%emt 00:00:35]} 13. Nbd2 {[%clk
00:09:33]} {[%emt 00:00:30]} Bb7 {[%clk 00:08:23]} {[%emt 00:00:26]} 14. e4
{[%clk 00:08:10]} {[%emt 00:01:29]} b5 {[%clk 00:08:23]} {[%emt 00:00:05]} 15.
axb5 {[%clk 00:07:40]} {[%emt 00:00:34]} axb5 {[%clk 00:08:23]} {[%emt
00:00:02]} 16. Rxa8 {[%clk 00:07:40]} {[%emt 00:00:04]} Qxa8 {[%clk 00:08:23]}
{[%emt 00:00:02]} 17. Bxb5 {[%clk 00:07:08]} {[%emt 00:00:37]} fxe4 {[%clk
00:08:10]} {[%emt 00:00:18]} 18. Nxe4 {[%clk 00:06:48]} {[%emt 00:00:26]} Nxe4
{[%clk 00:05:02]} {[%emt 00:03:13]} 19. Rxe4 {[%clk 00:06:48]} {[%emt
00:00:02]} Bxd5 {[%clk 00:05:02]} {[%emt 00:00:02]} 20. Ra4 {[%clk 00:05:30]}
{[%emt 00:01:22]} Qb7 {[%clk 00:04:31]} {[%emt 00:00:36]} 21. Be2 {[%clk
00:04:09]} {[%emt 00:01:26]} Bf6 {[%clk 00:03:58]} {[%emt 00:00:38]} 22. Qa1
{[%clk 00:03:35]} {[%emt 00:00:39]} Rg6 {[%clk 00:02:35]} {[%emt 00:01:28]} 23.
Ra7 {[%clk 00:03:24]} {[%emt 00:00:16]} Qc6 {[%clk 00:01:23]} {[%emt 00:01:18]}
24. Ra6 {[%clk 00:03:20]} {[%emt 00:00:10]} Qd7 {[%clk 00:01:23]} {[%emt
00:00:05]} 25. Bd3 {[%clk 00:02:15]} {[%emt 00:01:09]} Bxf3 {[%clk 00:00:31]}
{[%emt 00:00:58]} 26. Bxg6 {[%clk 00:02:09]} {[%emt 00:00:11]} Qg4 {[%clk
00:00:31]} {[%emt 00:00:02]} 27. Ra8+ {[%clk 00:01:17]} {[%emt 00:00:56]} Kg7
{[%clk 00:00:27]} {[%emt 00:00:09]} 28. Kf1 {[%clk 00:00:41]} {[%emt 00:00:42]}
Qxg2+ {[%clk 00:00:17]} {[%emt 00:00:15]} 29. Ke1 {[%clk 00:00:41]} {[%emt
00:00:02]} Bxa8 {[%clk 00:00:10]} {[%emt 00:00:11]} 30. Bd3 {[%clk 00:00:32]}
{[%emt 00:00:14]} Qg1+ {[%clk 00:00:10]} {[%emt 00:00:05]} 31. Bf1 {[%clk
00:00:32]} {[%emt 00:00:01]} Bg2 {[%clk 00:00:10]} {[%emt 00:00:03]} 32. Qa6
{[%clk 00:00:32]} {[%emt 00:00:03]} Qxf1+ {[%clk 00:00:10]} {[%emt 00:00:02]}
33. Qxf1 {[%clk 00:00:32]} {[%emt 00:00:02]} Bxf1 {[%clk 00:00:10]} {[%emt
00:00:02]} 34. Kxf1 {[%clk 00:00:32]} {[%emt 00:00:01]} c4 {[%clk 00:00:10]}
{[%emt 00:00:03]} 35. Ke2 {[%clk 00:00:32]} {[%emt 00:00:01]} Bg5 {[%clk
00:00:10]} {[%emt 00:00:02]} 36. Kf3 {[%clk 00:00:32]} {[%emt 00:00:01]} Bc1
{[%clk 00:00:10]} {[%emt 00:00:02]} 37. Ke4 {[%clk 00:00:32]} {[%emt 00:00:03]}
e6 {[%clk 00:00:10]} {[%emt 00:00:04]} 38. Kd4 {[%clk 00:00:32]} {[%emt
00:00:03]} d5 {[%clk 00:00:10]} 39. Kc5 {[%clk 00:00:32]} {[%emt 00:00:03]}
Bxb2 {[%clk 00:00:10]} {[%emt 00:00:02]} 40. Kd4 {[%emt 00:00:05]} 0-1